bitfinex/quotes_SOLUSD_20250307
["timestamp","ask_amount","ask_price","bid_price","bid_amount"]
[1741368147785,32.56388622,141.95,141.89,32.56388622]
[1741368148092,32.56388622,141.95,141.88,76.2045151]
[1741368148289,32.56388622,141.93,141.88,43.64062888]
[1741368148495,32.56388622,141.92,141.88,43.64062888]
[1741368148694,32.56388622,141.96,141.86,39.61288622]
[1741368148895,32.56388622,141.91,141.84,344.56388622]
[1741368149096,32.56388622,141.89,141.83,32.56388622]
[1741368149318,32.56388622,141.89,141.83,39.61448622]
[1741368149515,32.56388622,141.9,141.83,39.61448622]
[1741368149714,32.56388622,141.88,141.82,184.98388622]
[1741368149893,32.56388622,141.88,141.82,152.42]
[1741368150196,32.56388622,141.88,141.82,184.98388622]
[1741368150606,32.56388622,141.87,141.82,152.42]
[1741368150805,56.1151179,141.91,141.84,32.56388622]
[1741368150806,32.56388622,141.9,141.84,32.56388622]
[1741368150991,32.56388622,141.91,141.84,32.56388622]
[1741368151199,32.56388622,141.92,141.85,32.56388622]
[1741368151398,32.56388622,141.92,141.85,39.61338622]
[1741368151594,32.56388622,141.88,141.82,184.98388622]
[1741368151804,32.56388622,141.86,141.82,152.42]
[1741368152193,32.56388622,141.89,141.82,192.03488622]
[1741368152397,32.56388622,141.88,141.82,152.42]
[1741368152700,32.56388622,141.9,141.84,32.56388622]
[1741368152900,32.56388622,141.91,141.82,159.4709]
[1741368153099,32.56388622,141.9,141.84,32.56388622]
[1741368153331,32.56388622,141.89,141.83,32.56388622]
[1741368153714,32.56388622,141.88,141.82,184.98388622]
[1741368153913,63.1614179,141.92,141.82,152.42]
[1741368153914,32.56388622,141.87,141.82,152.42]
[1741368154221,32.56388622,141.88,141.82,184.98388622]
[1741368154418,32.56388622,141.88,141.82,192.03488622]
[1741368154624,32.56388622,141.89,141.83,32.56388622]
[1741368154810,56.1151179,141.91,141.84,32.56388622]
[1741368154811,32.56388622,141.9,141.84,32.56388622]
[1741368155436,32.56388622,141.89,141.83,32.56388622]
[1741368155837,32.56388622,141.9,141.84,32.56388622]
[1741368156335,88.67900412,141.91,141.85,32.56388622]
[1741368156736,88.67900412,141.91,141.84,32.56388622]
[1741368157239,88.67900412,141.91,141.85,32.56388622]
[1741368157439,56.1151179,141.91,141.86,39.61308622]
[1741368157738,32.56388622,141.92,141.86,39.61308622]
[1741368157930,32.56388622,141.91,141.83,7.0506]
[1741368158114,32.56388622,141.91,141.84,32.56388622]
[1741368158314,32.56388622,141.91,141.85,32.56388622]
[1741368158511,32.56388622,141.92,141.85,32.56388622]
[1741368158711,32.56388622,141.91,141.84,32.56388622]
[1741368158906,32.56388622,141.9,141.83,39.61448622]
[1741368159126,63.1609179,141.93,141.84,32.56388622]
[1741368159328,32.56388622,141.89,141.84,319.0501]
[1741368159629,32.56388622,141.9,141.84,7.0501]
[1741368160205,32.56388622,141.88,141.82,152.42]
[1741368160424,32.56388622,141.85,141.81,0.033]
[1741368160624,32.56388622,141.84,141.81,0.033]
[1741368160943,56.1151179,141.93,141.83,32.56388622]
[1741368161144,56.1151179,141.93,141.89,32.56388622]
[1741368161317,56.1151179,141.96,141.91,39.61058622]
[1741368161512,56.1151179,141.96,141.93,32.56388622]
[1741368162012,56.1151179,141.96,141.91,24.6634]
[1741368162013,56.1151179,141.96,141.92,32.56388622]
[1741368162214,56.1151179,141.96,141.91,39.61058622]
[1741368162413,56.1151179,141.96,141.92,32.56388622]
[1741368162620,56.1151179,141.99,141.94,32.56388622]
[1741368162816,56.1151179,141.99,141.93,32.56388622]
[1741368163030,88.67900412,141.99,141.93,32.56388622]
[1741368163222,32.56388622,141.98,141.92,32.56388622]
[1741368163421,56.1151179,141.99,141.94,32.56388622]
[1741368163622,95.23690412,142.03,141.96,32.56388622]
[1741368163816,56.1151179,142.03,141.99,32.56388622]
[1741368164016,32.56388622,142.04,141.98,32.56388622]
[1741368164323,32.56388622,142.03,141.97,32.56388622]
[1741368164722,56.1151179,142.05,141.97,32.56388622]
[1741368164723,32.56388622,142.04,141.97,32.56388622]
[1741368164928,32.56388622,142.03,141.97,32.56388622]
[1741368165343,32.56388622,142.02,141.93,137.7]
[1741368165638,32.56388622,141.94,141.88,7.048]
[1741368165936,32.56388622,141.92,141.86,7.049]
[1741368166109,32.56388622,141.91,141.86,7.049]
[1741368166309,88.67900412,141.93,141.87,32.56388622]
[1741368166513,88.67900412,141.93,141.86,7.049]
[1741368166514,56.1151179,141.93,141.89,32.56388622]
[1741368166715,32.56388622,141.95,141.88,32.56388622]
[1741368166932,32.56388622,141.95,141.89,32.56388622]
[1741368167120,88.67900412,141.96,141.89,32.56388622]
[1741368167329,32.56388622,141.97,141.9,32.56388622]
[1741368167728,71.1294179,141.98,141.91,32.56388622]
[1741368167938,103.69330412,141.98,141.92,32.56388622]
[1741368168140,62.7294179,141.98,141.92,32.56388622]
[1741368168436,88.67900412,142.02,141.9,1.05657893]
[1741368168614,56.1151179,142.02,141.96,32.56388622]
[1741368168822,32.56388622,142.03,141.96,32.56388622]
[1741368169130,56.1151179,142.04,141.96,32.56388622]
[1741368169332,32.56388622,142.02,141.96,32.56388622]
[1741368169536,32.56388622,142.02,141.95,32.56388622]
[1741368169837,32.56388622,142.02,141.96,7.0442]
[1741368170039,32.56388622,142.01,141.95,39.60848622]
[1741368170342,32.56388622,141.97,141.91,39.61058622]
[1741368170915,32.56388622,141.95,141.89,7.0477]
[1741368171240,32.56388622,141.95,141.89,39.61158622]
[1741368171430,32.56388622,141.93,141.87,39.61218622]
[1741368171645,32.56388622,141.91,141.85,185.12388622]
[1741368171951,32.56388622,141.9,141.85,152.56]
[1741368172134,32.56388622,141.88,141.85,152.56]
[1741368172935,8.01954413,141.89,141.81,0.033]
[1741368173145,32.56388622,141.86,141.81,0.033]
[1741368173640,32.56388622,141.86,141.81,7.0845]
[1741368174224,32.56388622,141.87,141.81,7.0845]
[1741368174522,56.1151179,141.93,141.82,48.96610854]
[1741368174523,7.0462,141.92,141.82,48.96610854]
[1741368174733,48.96610854,141.88,141.81,73.67980854]
[1741368174938,48.96610854,141.88,141.81,56.05060854]
[1741368175131,48.96610854,141.87,141.81,56.05060854]
[1741368175339,24.6617,141.92,141.81,56.05060854]
[1741368175540,48.96610854,141.87,141.81,56.05060854]
[1741368175919,48.96610854,141.87,141.81,73.67980854]
[1741368176329,48.96610854,141.87,141.81,7.0845]
[1741368176521,48.96610854,141.87,141.81,73.67980854]
[1741368177048,63.1618179,141.91,141.82,48.96610854]
[1741368177227,48.96610854,141.88,141.82,48.96610854]
[1741368177427,48.96610854,141.88,141.81,73.67980854]
[1741368177642,48.96610854,141.87,141.81,56.05060854]
[1741368177836,48.96610854,141.87,141.81,7.0845]
[1741368178039,48.96610854,141.86,141.81,7.0845]
[1741368178349,48.96610854,141.85,141.81,0.033]
[1741368178846,48.96610854,141.86,141.81,0.033]
[1741368179024,48.96610854,141.85,141.81,0.033]
[1741368179843,105.08122644,141.84,141.81,0.033]
[1741368180246,56.01720854,141.82,141.81,0.033]
[1741368180818,48.96610854,141.82,141.81,0.033]
[1741368181023,49.01466076,141.82,141.81,0.033]
[1741368181326,56.1151179,141.85,141.81,0.033]
[1741368181721,49.01466076,141.87,141.81,49.04766076]
[1741368182033,56.1151179,141.88,141.84,49.01466076]
[1741368182228,49.01466076,141.9,141.84,49.01466076]
[1741368182437,105.12977866,141.92,141.85,56.06436076]
[1741368182646,49.01466076,141.91,141.85,56.06436076]
[1741368182820,49.01466076,141.9,141.85,7.0497]
[1741368183026,56.1151179,141.92,141.85,7.0497]
[1741368183027,56.1151179,141.92,141.86,49.01466076]
[1741368183349,49.01466076,141.94,141.88,49.01466076]
[1741368183537,105.12977866,141.95,141.89,49.01466076]
[1741368183738,105.12977866,141.95,141.91,48.90592244]
[1741368183739,56.1151179,141.95,141.91,48.90592244]
[1741368183942,105.02104034,141.97,141.91,48.90592244]
[1741368184129,48.90592244,141.98,141.91,48.90592244]
[1741368184330,48.90592244,141.98,141.92,48.90592244]
[1741368184632,48.90592244,142.0,141.93,48.90592244]
[1741368184827,64.4951179,142.01,141.96,48.90592244]
[1741368184828,56.1151179,142.01,141.96,48.90592244]
[1741368185252,48.90592244,142.03,141.96,48.90592244]
[1741368185554,48.90592244,142.05,141.98,48.90592244]
[1741368185739,48.90592244,142.08,142.01,48.90592244]
[1741368185927,48.90592244,142.08,142.02,48.90592244]
[1741368186133,48.90592244,142.07,142.01,48.90592244]
[1741368186332,48.90592244,142.09,142.02,48.90592244]
[1741368186649,48.90592244,142.09,142.02,55.94712244]
[1741368186840,63.1521179,142.11,141.99,7.0427]
[1741368187023,48.90592244,142.07,142.01,48.90592244]
[1741368187230,48.90592244,142.08,142.02,48.90592244]
[1741368187523,48.90592244,142.08,142.01,48.90592244]
[1741368187762,48.90592244,142.08,142.01,360.90592244]
[1741368187964,48.90592244,142.07,142.01,48.90592244]
[1741368188129,56.1151179,142.11,142.03,48.90592244]
[1741368188331,48.90592244,142.13,142.06,48.90592244]
[1741368188637,48.90592244,142.13,142.03,186.60592244]
[1741368188638,0.03,142.14,142.08,48.90592244]
[1741368188840,0.03,142.14,142.1,48.90592244]
[1741368189041,0.03,142.14,142.11,48.90592244]
[1741368189238,0.03,142.14,142.1,48.90592244]
[1741368189443,0.03,142.14,142.09,48.90592244]
[1741368189857,48.93592244,142.14,142.08,48.90592244]
[1741368190032,0.03,142.14,142.08,48.90592244]
[1741368190233,0.03,142.14,142.09,48.90592244]
[1741368190432,0.03,142.14,142.08,48.90592244]
[1741368190832,0.03,142.14,142.09,48.90592244]
[1741368191035,0.03,142.14,142.1,48.90592244]
[1741368191241,0.03,142.14,142.09,48.90592244]
[1741368191642,0.03,142.14,142.12,48.90592244]
[1741368191838,0.03,142.14,142.13,48.90592244]
[1741368192056,0.03,142.17,142.13,187.66070042]
[1741368192242,0.03,142.17,142.16,48.90592244]
[1741368193345,0.03,142.17,142.15,48.90592244]
[1741368193748,0.03,142.17,142.16,48.90592244]
[1741368194455,0.03,142.22,142.16,236.56640617]
[1741368194645,0.03,142.25,142.21,55.93772244]
[1741368194851,0.03,142.25,142.24,97.81184488]
[1741368195063,0.03,142.25,142.24,236.56580309]
[1741368195257,0.03,142.25,142.24,186.60592244]
[1741368195457,0.03,142.25,142.24,137.7]
[1741368195768,0.03,142.25,142.2,137.7]
[1741368195964,0.03,142.25,142.19,48.90592244]
[1741368196262,48.90592244,142.22,142.16,194.96592244]
[1741368196466,48.90592244,142.22,142.15,48.90592244]
[1741368196657,48.90592244,142.23,142.17,48.90592244]
[1741368196859,48.90592244,142.24,142.18,48.90592244]
[1741368197174,0.03,142.25,142.22,48.90592244]
[1741368197374,0.03,142.25,142.18,146.06]
[1741368197549,0.03,142.25,142.24,48.90592244]
[1741368197755,0.03,142.29,142.24,194.96592244]
[1741368197948,0.03,142.29,142.27,48.90592244]
[1741368198165,0.03,142.29,142.25,48.90592244]
[1741368198345,0.03,142.29,142.26,48.90592244]
[1741368198544,0.03,142.29,142.25,360.90592244]
[1741368198767,0.03,142.29,142.24,8.36]
[1741368199169,48.93592244,142.29,142.23,48.90592244]
[1741368199479,0.03,142.29,142.23,48.90592244]
[1741368199654,48.93592244,142.29,142.23,48.90592244]
[1741368200009,0.03,142.29,142.25,48.90592244]
[1741368200164,0.03,142.29,142.27,48.90592244]
[1741368200468,0.03,142.29,142.25,137.7]
[1741368200469,0.03,142.29,142.22,24.6091]
[1741368200677,0.03,142.29,142.26,48.90592244]
[1741368200854,0.03,142.29,142.27,48.90592244]
[1741368201274,0.03,142.29,142.28,48.90592244]
[1741368201676,0.03,142.29,142.28,360.90592244]
[1741368202264,0.0001,142.29,142.28,360.90592244]
[1741368202476,0.03,142.37,142.29,137.7]
[1741368202781,0.03,142.46,142.37,24.5837]
[1741368202979,0.03,142.46,142.43,48.90592244]
[1741368203553,0.03,142.46,142.43,186.60592244]
[1741368203976,0.03,142.46,142.43,137.7]
[1741368204183,0.03,142.46,142.4,48.90592244]
[1741368204386,48.93592244,142.46,142.39,48.90592244]
[1741368204593,48.90592244,142.44,142.38,48.90592244]
[1741368204758,48.90592244,142.42,142.36,290.0]
[1741368204958,48.90592244,142.43,142.36,201.20592244]
[1741368205167,48.90592244,142.43,142.37,48.90592244]
[1741368205370,48.90592244,142.39,142.36,152.3]
[1741368205573,48.90592244,142.38,142.32,48.90592244]
[1741368205860,48.90592244,142.37,142.3,186.60592244]
[1741368206185,56.1151179,142.42,142.32,48.90592244]
[1741368206481,56.1151179,142.41,142.33,48.90592244]
[1741368206661,48.90592244,142.39,142.33,48.90592244]
[1741368206864,48.90592244,142.38,142.31,48.90592244]
[1741368207073,56.1151179,142.45,142.36,48.90592244]
[1741368207277,56.1151179,142.45,142.32,1.05362645]
[1741368207278,56.1151179,142.45,142.4,48.90592244]
[1741368207456,0.03,142.46,142.4,289.88]
[1741368207659,0.03,142.46,142.41,9.41268722]
[1741368207960,0.03,142.46,142.41,147.11268722]
[1741368208165,0.03,142.46,142.45,48.90592244]
[1741368208374,0.03,142.46,142.45,186.60592244]
[1741368208586,0.03,142.46,142.45,498.60592244]
[1741368208878,0.03,142.46,142.45,416.83184488]
[1741368209085,55.92012244,142.57,142.45,260.08184488]
[1741368209270,48.90592244,142.57,142.46,1.05218696]
[1741368209471,48.90592244,142.57,142.51,48.90592244]
[1741368209775,7.0154,142.55,142.49,48.90592244]
[1741368209975,0.0001,142.56,142.49,48.90592244]
[1741368210169,48.90592244,142.55,142.49,48.90592244]
[1741368210378,55.95282244,142.52,142.47,8.36]
[1741368210570,7.0469,142.52,142.47,48.90592244]
[1741368210760,48.90592244,142.51,142.43,8.34]
[1741368210965,73.49412244,142.52,142.43,8.34]
[1741368211171,24.5882,142.52,142.43,57.24592244]
[1741368211371,48.90592244,142.51,142.43,15.3609]
[1741368211573,55.95282244,142.52,142.45,48.90592244]
[1741368211879,48.90592244,142.5,142.43,57.24592244]
[1741368212082,48.90592244,142.48,142.42,48.90592244]
[1741368212283,48.90592244,142.47,142.4,201.08592244]
[1741368212589,48.90592244,142.45,142.4,152.18]
[1741368212764,7.0209,142.43,142.4,152.18]
[1741368213280,48.90592244,142.44,142.4,152.18]
[1741368213481,7.0205,142.44,142.4,152.18]
[1741368213987,73.47762244,142.44,142.37,57.24592244]
[1741368214201,24.5717,142.44,142.33,15.3657]
[1741368214368,24.5717,142.44,142.33,137.7]
[1741368214369,48.90592244,142.38,142.33,137.7]
[1741368214565,48.90592244,142.38,142.32,152.06]
[1741368214566,48.90592244,142.37,142.32,152.06]
[1741368214874,55.93022244,142.37,142.31,48.90592244]
[1741368215070,48.90592244,142.36,142.29,48.90592244]
[1741368215273,48.90592244,142.37,142.3,48.90592244]
[1741368215475,105.02104034,142.4,142.33,48.90592244]
[1741368215785,48.90592244,142.38,142.32,48.90592244]
[1741368216167,48.90592244,142.37,142.31,48.90592244]
[1741368216368,48.90592244,142.38,142.32,48.90592244]
[1741368216568,48.90592244,142.4,142.34,48.90592244]
[1741368216982,48.90592244,142.4,142.33,48.90592244]
[1741368217183,48.90592244,142.41,142.33,137.7]
[1741368217389,64.4551179,142.44,142.35,48.90592244]
[1741368217390,48.90592244,142.42,142.35,48.90592244]
[1741368217579,48.90592244,142.38,142.33,137.7]
[1741368217884,48.90592244,142.38,142.3,7.0274]
[1741368217885,48.90592244,142.36,142.3,48.90592244]
[1741368218091,48.90592244,142.37,142.3,48.90592244]
[1741368218270,48.90592244,142.37,142.31,48.90592244]
[1741368218469,48.90592244,142.38,142.32,48.90592244]
[1741368218893,48.90592244,142.38,142.29,162.2974]
[1741368219091,48.90592244,142.38,142.31,55.93252244]
[1741368219285,48.90592244,142.39,142.33,48.90592244]
[1741368219476,48.90592244,142.37,142.31,137.7]
[1741368219677,48.90592244,142.33,142.3,0.033]
[1741368219879,48.90592244,142.32,142.3,0.033]
[1741368220078,48.90592244,142.31,142.3,0.033]
[1741368220272,48.90592244,142.32,142.3,0.033]
[1741368220577,48.90592244,142.33,142.3,0.033]
[1741368220783,48.90592244,142.34,142.3,0.033]
[1741368221400,48.90592244,142.32,142.3,0.033]
[1741368221575,48.90592244,142.31,142.3,0.033]
[1741368222986,48.90592244,142.32,142.3,0.033]
[1741368223191,48.90592244,142.33,142.3,0.033]
[1741368223380,48.90592244,142.32,142.3,0.033]
[1741368223580,48.90592244,142.33,142.3,0.033]
[1741368224279,48.90592244,142.32,142.3,0.033]
[1741368224492,48.90592244,142.31,142.3,0.033]
[1741368225084,56.1151179,142.34,142.3,0.033]
[1741368225289,105.02104034,142.34,142.3,0.033]
[1741368225794,56.1151179,142.34,142.3,0.033]
[1741368225981,48.90592244,142.35,142.3,0.033]
[1741368226179,48.90592244,142.36,142.3,48.93892244]
[1741368226391,48.90592244,142.35,142.3,0.033]
[1741368227202,55.93082244,142.35,142.3,0.033]
[1741368227403,48.90592244,142.34,142.3,0.033]
[1741368227597,48.90592244,142.31,142.3,0.033]
[1741368228406,97.81184488,142.31,142.3,0.033]
[1741368228900,48.90592244,142.31,142.3,0.033]
[1741368230015,48.90592244,142.32,142.3,0.033]
[1741368230504,48.90592244,142.31,142.3,0.033]
[1741368230803,81.5,142.37,142.3,0.033]
[1741368231000,48.90592244,142.37,142.3,48.93892244]
[1741368231182,81.5,142.39,142.33,48.90592244]
[1741368231387,81.5,142.39,142.34,48.90592244]
[1741368232001,57.24592244,142.41,142.35,48.90592244]
[1741368232308,81.5,142.44,142.36,48.90592244]
[1741368232309,48.90592244,142.42,142.36,48.90592244]
[1741368232895,48.90592244,142.42,142.32,137.7]
[1741368232896,48.90592244,142.4,142.32,137.7]
[1741368233090,48.90592244,142.39,142.33,48.90592244]
[1741368233297,48.90592244,142.37,142.31,55.93282244]
[1741368233617,7.0213,142.43,142.36,48.90592244]
[1741368233793,48.90592244,142.42,142.36,48.90592244]
[1741368234302,7.0213,142.43,142.35,48.90592244]
[1741368234303,48.90592244,142.41,142.35,48.90592244]
[1741368235090,48.90592244,142.4,142.34,48.90592244]
[1741368235288,7.0213,142.43,142.33,55.93162244]
[1741368235604,48.90592244,142.36,142.3,0.033]
[1741368235807,48.90592244,142.35,142.3,0.033]
[1741368236186,48.90592244,142.32,142.3,0.033]
[1741368236610,187.65184488,142.31,142.3,0.033]
[1741368237009,138.74592244,142.31,142.3,0.033]
[1741368237197,57.24592244,142.31,142.3,0.033]
[1741368237525,64.27282244,142.31,142.3,0.033]
[1741368237702,113.17874488,142.31,142.3,0.033]
[1741368238224,113.17874488,142.31,142.24,0.033]
[1741368238412,48.90592244,142.27,142.24,0.033]
[1741368238708,48.90592244,142.28,142.24,0.033]
[1741368238911,48.90592244,142.27,142.24,0.033]
[1741368239799,48.90592244,142.28,142.24,0.033]
[1741368240216,48.90592244,142.26,142.24,0.033]
[1741368240398,48.90592244,142.25,142.24,0.033]
[1741368241211,87.33455729,142.31,142.24,0.033]
[1741368241512,130.40592244,142.27,142.24,0.033]
[1741368241698,48.90592244,142.25,142.24,0.033]
[1741368242813,130.40592244,142.26,142.24,0.033]
[1741368243017,81.5,142.26,142.24,0.033]
[1741368243398,130.40592244,142.26,142.24,0.033]
[1741368243809,8.34,142.28,142.24,0.033]
[1741368244203,64.27432244,142.28,142.24,0.033]
[1741368244423,48.90592244,142.26,142.24,0.033]
[1741368244595,57.24592244,142.28,142.24,0.033]
[1741368244790,8.34,142.28,142.24,0.033]
[1741368245027,48.90592244,142.26,142.24,0.033]
[1741368245320,96.8685,142.28,142.24,0.033]
[1741368245493,48.90592244,142.25,142.24,0.033]
[1741368245696,89.84,142.28,142.24,0.033]
[1741368245908,48.90592244,142.26,142.24,0.033]
[1741368246113,130.40592244,142.25,142.24,0.033]
[1741368246302,48.90592244,142.25,142.24,0.033]
[1741368247801,55.93572244,142.25,142.24,0.033]
[1741368247998,48.90592244,142.25,142.24,0.033]
[1741368248699,55.93572244,142.25,142.24,0.033]
[1741368249219,8.34,142.26,142.24,0.033]
[1741368249396,57.24592244,142.26,142.24,0.033]
[1741368249596,48.90592244,142.26,142.24,0.033]
[1741368249798,48.90592244,142.25,142.24,0.033]
[1741368250413,97.81184488,142.25,142.24,0.033]
[1741368251102,48.90592244,142.25,142.24,0.033]
[1741368251826,97.81184488,142.25,142.24,0.033]
[1741368252129,104.84164488,142.25,142.24,0.033]
[1741368252330,55.93572244,142.25,142.24,0.033]
[1741368252804,64.27572244,142.25,142.24,0.033]
[1741368254019,113.18164488,142.25,142.24,0.033]
[1741368254226,7.0274,142.3,142.24,0.033]
[1741368254534,48.90592244,142.28,142.24,0.033]
[1741368255021,57.24592244,142.29,142.24,0.033]
[1741368255220,0.03,142.3,142.24,48.93892244]
[1741368255415,0.03,142.3,142.26,48.90592244]
[1741368255731,0.03,142.3,142.25,48.90592244]
[1741368256019,48.90592244,142.28,142.24,7.0632]
[1741368256221,81.5,142.29,142.24,73.54502244]
[1741368256429,0.03,142.3,142.24,73.54502244]
[1741368256809,0.03,142.3,142.24,55.96912244]
[1741368257002,0.03,142.3,142.24,385.54502244]
[1741368257204,0.03,142.3,142.24,336.6391]
[1741368257507,48.93592244,142.3,142.24,367.96912244]
[1741368257899,48.90592244,142.29,142.24,7.0632]
[1741368258103,48.93592244,142.3,142.24,55.96912244]
[1741368258403,0.03,142.3,142.25,48.90592244]
[1741368258621,48.93592244,142.3,142.24,55.96912244]
[1741368258819,0.03,142.3,142.24,7.0632]
[1741368259007,0.03,142.3,142.27,48.90592244]
[1741368259204,0.03,142.3,142.25,48.90592244]
[1741368259724,0.03,142.3,142.28,48.90592244]
[1741368260113,0.03,142.3,142.29,7.0279]
[1741368260312,0.03,142.3,142.29,55.93382244]
[1741368260635,0.03,142.3,142.29,7.0279]
[1741368261008,0.03,142.3,142.27,312.0]
[1741368261318,0.03,142.3,142.26,7.0293]
[1741368261517,48.93592244,142.3,142.24,0.033]
[1741368261718,48.90592244,142.28,142.24,0.033]
[1741368262526,48.90592244,142.27,142.24,0.033]
[1741368263125,48.90592244,142.26,142.24,0.033]
[1741368263428,48.90592244,142.25,142.24,0.033]
[1741368263614,88.5285,142.28,142.24,0.033]
[1741368263615,48.90592244,142.26,142.24,0.033]
[1741368263815,81.5,142.28,142.24,0.033]
[1741368264027,48.90592244,142.26,142.24,0.033]
[1741368265124,130.40592244,142.25,142.24,0.033]
[1741368265328,97.81184488,142.25,142.24,0.033]
[1741368265826,48.90592244,142.25,142.24,0.033]
[1741368266323,55.93572244,142.25,142.24,0.033]
[1741368266522,8.34,142.26,142.24,0.033]
[1741368266703,48.90592244,142.25,142.24,0.033]
[1741368267126,97.81184488,142.25,142.24,0.033]
[1741368267332,48.90592244,142.25,142.24,0.033]
[1741368268029,7.0285,142.28,142.24,0.033]
[1741368268201,48.90592244,142.28,142.24,0.033]
[1741368268406,48.90592244,142.27,142.24,0.033]
[1741368268732,48.90592244,142.25,142.24,0.033]
[1741368269237,48.90592244,142.27,142.24,0.033]
[1741368269411,48.90592244,142.26,142.24,0.033]
[1741368269908,48.90592244,142.27,142.24,0.033]
[1741368270931,130.40592244,142.28,142.24,0.033]
[1741368271134,48.90592244,142.27,142.24,0.033]
[1741368271307,81.5,142.28,142.24,0.033]
[1741368271503,130.40592244,142.28,142.24,0.033]
[1741368272311,81.5,142.28,142.24,0.033]
[1741368273128,48.90592244,142.25,142.24,0.033]
[1741368274231,48.90592244,142.26,142.24,0.033]
[1741368274833,48.90592244,142.25,142.24,0.033]
[1741368276941,55.93572244,142.25,142.24,0.033]
[1741368278037,122.41624488,142.25,142.15,153.8041]
[1741368278228,48.90592244,142.2,142.15,153.8041]
[1741368278433,48.90592244,142.21,142.15,160.8389]
[1741368278737,24.6044,142.25,142.16,48.90592244]
[1741368278738,7.0298,142.25,142.16,48.90592244]
[1741368278923,48.90592244,142.23,142.18,7.0333]
[1741368279526,130.40592244,142.23,142.18,7.0333]
[1741368279726,81.5,142.23,142.18,7.0333]
[1741368279922,8.34,142.27,142.2,48.90592244]
[1741368279923,81.5,142.26,142.2,48.90592244]
[1741368280121,81.5,142.26,142.2,360.90592244]
[1741368280526,81.5,142.26,142.2,344.4681683]
[1741368280718,113.9681683,142.26,142.2,312.0]
[1741368281036,113.9681683,142.26,142.21,7.0318]
[1741368281338,32.4981683,142.28,142.22,32.4681683]
[1741368281646,0.03,142.28,142.23,32.4681683]
[1741368282338,0.03,142.28,142.21,24.6114]
[1741368282560,0.03,142.28,142.26,32.4681683]
[1741368282713,0.03,142.28,142.27,32.4681683]
[1741368283117,0.03,142.3,142.27,39.4969683]
[1741368283340,0.03,142.3,142.29,32.4681683]
[1741368284559,0.03,142.3,142.26,207.92933543]
[1741368284725,0.03,142.3,142.26,152.24]
[1741368285046,0.03,142.3,142.27,48.66013543]
[1741368285245,0.03,142.3,142.29,48.66013543]
[1741368285623,0.03,142.3,142.28,48.66013543]
[1741368285832,0.03,142.3,142.27,48.66013543]
[1741368286134,0.03,142.3,142.29,48.66013543]
[1741368287146,0.03,142.3,142.29,55.68803543]
[1741368287349,81.5,142.39,142.3,1.5445]
[1741368287652,55.68163543,142.42,142.36,48.66013543]
[1741368287845,48.66013543,142.42,142.35,48.66013543]
[1741368288151,48.69013543,142.43,142.37,48.66013543]
[1741368288362,0.03,142.43,142.39,48.66013543]
[1741368288541,0.03,142.43,142.42,48.66013543]
[1741368288843,0.03,142.43,142.41,48.66013543]
[1741368289049,0.03,142.43,142.4,50.21073543]
[1741368289438,0.03,142.43,142.4,1.5506]
[1741368290151,0.03,142.43,142.39,48.66013543]
[1741368290345,0.03,142.43,142.38,48.66013543]
[1741368290963,0.03,142.43,142.39,48.66013543]
[1741368291153,0.03,142.43,142.4,48.66013543]
[1741368291829,0.03,142.43,142.38,48.66013543]
[1741368292047,0.03,142.43,142.37,200.84013543]
[1741368292243,0.03,142.42,142.39,48.66013543]
[1741368292623,0.03,142.42,142.41,48.66013543]
[1741368292844,0.03,142.42,142.38,48.66013543]
[1741368293041,0.03,142.42,142.39,48.66013543]
[1741368293445,0.03,142.42,142.41,48.66013543]
[1741368293751,0.03,142.42,142.38,48.66013543]
[1741368294047,48.69013543,142.42,142.37,152.18]
[1741368294250,48.66013543,142.4,142.37,152.18]
[1741368294436,48.66013543,142.39,142.37,152.18]
[1741368294749,130.16013543,142.38,142.31,63.73153543]
[1741368294935,81.5,142.38,142.33,48.66013543]
[1741368295354,81.5,142.38,142.31,15.0714]
[1741368295355,81.5,142.38,142.34,48.66013543]
[1741368295551,81.5,142.38,142.35,48.66013543]
[1741368295849,88.5236,142.38,142.33,48.66013543]